bitfinex/quotes_SOLUSD_20260115
["timestamp","ask_amount","ask_price","bid_price","bid_amount"]
[1768458664493,4.02845156,144.3,144.26,0.69554646]
[1768458664692,6.92914361,144.32,144.26,4.72399802]
[1768458664892,4.02845156,144.31,144.26,4.72399802]
[1768458665112,0.7078068,144.3,144.26,0.69554646]
[1768458666193,4.73625836,144.3,144.26,0.69554646]
[1768458666400,0.7078068,144.3,144.26,0.69554646]
[1768458666612,4.73625836,144.3,144.26,0.69554646]
[1768458667100,4.43778385,144.29,144.26,0.69554646]
[1768458667516,0.40933229,144.29,144.26,0.69554646]
[1768458668595,0.40933229,144.29,144.25,0.89554646]
[1768458668816,0.41320328,144.25,144.24,0.2]
[1768458668997,4.73625836,144.26,144.24,0.2]
[1768458669196,0.64780681,144.26,144.24,0.2]
[1768458669396,4.02845156,144.27,144.24,0.89554646]
[1768458670193,4.02845156,144.28,144.25,0.69554646]
[1768458670391,4.02845156,144.29,144.25,0.69554646]
[1768458670812,10.95904124,144.29,144.25,0.69554646]
[1768458671319,0.7078068,144.28,144.25,0.69554646]
[1768458671795,0.7078068,144.28,144.24,4.92399802]
[1768458671998,0.1519323,144.27,144.24,0.89554646]
[1768458672409,0.1519323,144.27,144.24,0.2]
[1768458673307,0.70224805,144.26,144.24,0.2]
[1768458675995,0.64224806,144.26,144.24,0.2]
[1768458680938,7.57432627,144.26,144.24,0.2]
[1768458681427,0.64224806,144.26,144.24,0.2]
[1768458682206,3.22334837,144.26,144.24,0.2]
[1768458682405,3.17730803,144.26,144.24,0.2]
[1768458682620,0.59620772,144.26,144.24,0.2]
[1768458682823,3.17730803,144.26,144.24,0.2]
[1768458685130,0.59620772,144.26,144.24,0.2]
[1768458691311,3.17730803,144.26,144.24,0.2]
[1768458692436,10.10939652,144.26,144.24,0.2]
[1768458692728,0.15743546,144.25,144.24,0.2]
[1768458693334,10.16842224,144.26,144.24,0.2]
[1768458693531,7.58732193,144.26,144.24,0.2]
[1768458693834,10.16842224,144.26,144.24,0.2]
[1768458694511,0.099,144.25,144.22,40.27868225]
[1768458695132,0.099,144.25,144.22,40.98392678]
[1768458695336,9.76842224,144.26,144.23,0.70524453]
[1768458699435,2.68010031,144.25,144.22,40.98392678]
[1768458700840,9.61251618,144.25,144.22,40.27868225]
[1768458701416,0.2536711,144.24,144.22,40.27868225]
[1768458702018,0.10054671,144.23,144.22,40.27868225]
[1768458702850,2.83633375,144.24,144.22,40.27868225]
[1768458704935,2.58110031,144.24,144.22,40.98392678]
[1768458708344,9.76874962,144.25,144.22,40.98392678]
[1768458709421,7.18764931,144.25,144.22,40.98392678]
[1768458709622,9.76874962,144.25,144.22,40.98392678]
[1768458710841,0.25523344,144.25,144.22,40.98392678]
[1768458711147,9.76845625,144.26,144.23,0.67282482]
[1768458712547,2.58110031,144.26,144.23,0.67282482]
[1768458712748,7.18683463,144.27,144.23,0.67282482]
[1768458714557,9.76793494,144.27,144.23,0.67282482]
[1768458716149,9.61210289,144.26,144.23,0.67282482]
[1768458716949,2.58110031,144.25,144.23,0.67282482]
[1768458717157,2.58110031,144.24,144.23,0.67282482]
[1768458717450,2.58110031,144.24,144.22,40.95150707]
[1768458718241,9.61461474,144.24,144.22,40.27868225]
[1768458718558,2.68164702,144.24,144.22,40.27868225]
[1768458718857,9.6146036,144.24,144.22,40.27868225]
[1768458719062,7.03350329,144.24,144.22,40.27868225]
[1768458719257,9.51405689,144.24,144.22,40.95150707]
[1768458719458,2.58110031,144.23,144.22,40.27868225]
[1768458720650,9.51465645,144.23,144.21,0.87282482]
[1768458720846,10.19388069,144.23,144.2,0.2]
[1768458721260,2.92644598,144.22,144.2,0.2]
[1768458721659,2.58110031,144.22,144.2,0.2]
[1768458722764,9.51501393,144.22,144.2,0.87282482]
[1768458723063,2.58110031,144.21,144.19,0.87282482]
[1768458724262,3.25698577,144.21,144.19,0.2]
[1768458724457,17.33032269,144.26,144.21,0.67282482]
[1768458724759,9.88807444,144.26,144.21,2.58110031]
[1768458726070,10.1897785,144.25,144.19,7.13511425]
[1768458726368,10.1897785,144.25,144.2,2.58110031]
[1768458726568,10.1897785,144.25,144.21,0.67282482]
[1768458727566,0.37805704,144.24,144.21,0.67282482]
[1768458727743,3.25430151,144.23,144.2,0.67282482]
[1768458729972,10.18775965,144.23,144.2,0.67282482]
[1768458730157,2.58110031,144.22,144.2,0.67282482]
[1768458730558,0.67027928,144.21,144.19,0.2]
[1768458730753,6.93345814,144.23,144.19,0.2]
[1768458730959,3.26032455,144.22,144.19,0.87282482]
[1768458731860,0.67922424,144.22,144.19,0.87282482]
[1768458732060,3.26032455,144.22,144.19,0.87282482]
[1768458732454,9.51455845,144.23,144.2,0.67282482]
[1768458732768,6.93345814,144.23,144.2,0.67282482]
[1768458733068,9.88960412,144.23,144.2,0.67282482]
[1768458733446,2.95614598,144.23,144.2,0.67282482]
[1768458733653,9.51416538,144.24,144.2,0.67282482]
[1768458734260,6.93306507,144.24,144.2,0.67282482]
[1768458734472,12.64,144.26,144.22,0.67282482]
[1768458734473,6.93237892,144.26,144.22,0.67282482]
[1768458734674,9.51347923,144.26,144.22,0.67282482]
[1768458734879,9.8885249,144.26,144.22,0.67282482]
[1768458735458,11.64261213,144.25,144.22,0.67282482]
[1768458737574,11.64261213,144.25,144.19,7.13510043]
[1768458737779,0.37805704,144.24,144.2,0.67282482]
[1768458737970,7.61174891,144.25,144.21,0.67282482]
[1768458738171,11.64565391,144.25,144.21,0.67282482]
[1768458738988,0.67922424,144.25,144.21,0.67282482]
[1768458739166,4.71312924,144.25,144.21,0.67282482]
[1768458739873,20.25086025,144.27,144.22,0.67282482]
[1768458740069,4.033905,144.26,144.22,0.67282482]
[1768458741180,20.25086025,144.27,144.23,0.7149465]
[1768458741369,24.28476525,144.27,144.23,0.7149465]
[1768458742191,11.6717309,144.28,144.24,0.7149465]
[1768458742389,4.74064185,144.28,144.24,0.7149465]
[1768458743006,110.02981916,144.31,144.26,0.71683043]
[1768458743179,4.033905,144.3,144.26,0.71683043]
[1768458743498,11.66525853,144.3,144.26,0.71683043]
[1768458743682,4.7351031,144.3,144.26,0.71683043]
[1768458743994,0.7011981,144.3,144.26,4.75073543]
[1768458745489,0.7011981,144.32,144.27,0.71683043]
[1768458745692,7.63010547,144.33,144.3,0.71683043]
[1768458745873,7.63010547,144.33,144.3,0.68683043]
[1768458746079,7.63010547,144.33,144.3,0.62683043]
[1768458746397,11.66401047,144.33,144.3,0.62683043]
[1768458746903,11.66401047,144.33,144.28,4.033905]
[1768458747075,0.69861004,144.31,144.25,6.93230833]
[1768458747275,0.69607348,144.29,144.25,4.033905]
[1768458747495,4.7351031,144.3,144.25,4.033905]
[1768458748199,11.6653326,144.3,144.26,0.71683043]
[1768458748399,0.44239155,144.29,144.25,0.71683043]
[1768458748612,4.47629655,144.29,144.25,0.71683043]
[1768458749517,4.73251504,144.28,144.25,0.71683043]
[1768458749905,0.69861004,144.28,144.25,0.71683043]
[1768458750415,11.66571971,144.29,144.25,0.71683043]
[1768458752615,7.63181471,144.29,144.25,4.75073543]
[1768458753499,11.66571971,144.29,144.25,0.71683043]
[1768458754308,0.44239155,144.28,144.25,0.71683043]
[1768458760111,6.93061661,144.29,144.25,0.71683043]
[1768458760314,6.93061661,144.29,144.26,0.71683043]
[1768458760512,7.37300816,144.29,144.26,0.71683043]
[1768458763027,7.37300816,144.29,144.26,0.69012478]
[1768458769831,4.033905,144.3,144.26,0.69012478]
[1768458770130,7.63088384,144.31,144.27,0.71683043]
[1768458772635,11.66478884,144.31,144.27,0.71683043]
[1768458772837,7.63088384,144.31,144.27,0.71683043]
[1768458773131,6.92968574,144.31,144.28,0.69272624]
[1768458774230,0.71015115,144.34,144.29,0.69272624]
[1768458774431,0.45996663,144.33,144.29,0.69272624]
[1768458774613,4.49387163,144.33,144.29,0.69272624]
[1768458775537,11.42264125,144.33,144.29,0.69272624]
[1768458778132,4.7415543,144.32,144.26,19.57181068]
[1768458778317,0.46244346,144.31,144.28,0.69272624]
[1768458779126,4.74405615,144.32,144.28,0.69272624]
[1768458780235,4.49387163,144.31,144.28,0.69272624]
[1768458780440,0.7076493,144.3,144.27,0.69272624]
[1768458780640,4.7415543,144.3,144.27,0.69272624]
[1768458780837,7.63959293,144.32,144.27,4.72663124]
[1768458781144,11.67349793,144.32,144.28,0.69272624]
[1768458782134,0.45996663,144.31,144.28,0.69272624]
[1768458782332,0.45996663,144.31,144.27,0.69272624]
[1768458782333,6.93000693,144.3,144.27,0.69272624]
[1768458785038,0.46244346,144.29,144.26,0.69272624]
[1768458785614,7.3931083,144.29,144.26,0.69272624]
[1768458786039,0.70519724,144.28,144.25,0.69272624]
[1768458787819,7.6361896,144.28,144.25,0.69272624]
[1768458788436,6.93099236,144.28,144.25,4.72663124]
[1768458788713,6.93099236,144.28,144.26,0.69272624]
[1768458802031,9.97124188,144.28,144.24,0.6759695]
[1768458802256,0.68854981,144.27,144.24,0.6759695]
[1768458802548,0.48135195,144.26,144.23,0.71877374]
[1768458804457,10.20976178,144.27,144.23,0.71877374]
[1768458806131,3.05231872,144.26,144.23,0.71877374]
[1768458806974,0.47203583,144.26,144.23,0.71877374]
[1768458807359,7.62947889,144.27,144.23,0.71877374]
[1768458807537,10.20976178,144.27,144.23,0.71877374]
[1768458807737,7.62947889,144.27,144.23,0.71877374]
[1768458810457,7.62947889,144.27,144.23,3.29905663]
[1768458810770,7.62947889,144.27,144.24,0.71877374]
[1768458812165,0.47203583,144.26,144.24,0.71877374]
[1768458812760,7.62947889,144.27,144.24,0.71877374]
[1768458813769,0.69796004,144.29,144.25,0.71877374]
[1768458815070,7.6285927,144.29,144.25,0.71877374]
[1768458816873,10.20887559,144.29,144.25,0.71877374]
[1768458817375,0.47203583,144.28,144.25,0.71877374]
[1768458817672,0.69570079,144.27,144.24,0.71877374]
[1768458819575,7.62741566,144.27,144.24,0.71877374]
[1768458819796,0.47427248,144.26,144.23,0.71877374]
[1768458821759,7.40625564,144.26,144.23,0.71877374]
[1768458824166,0.69348651,144.25,144.2,0.71877374]
[1768458824461,3.05231872,144.22,144.19,0.91877374]
[1768458825475,3.27598368,144.21,144.19,0.2]
[1768458826570,0.67242279,144.19,144.18,0.2]
[1768458826868,0.67242279,144.19,144.16,0.67673305]
[1768458827187,0.4973177,144.18,144.14,0.67673305]
[1768458827485,9.5161264,144.18,144.14,0.67673305]
[1768458827988,10.0134441,144.18,144.14,0.67673305]
[1768458828282,7.43316121,144.18,144.14,0.67673305]
[1768458829102,9.5161264,144.18,144.14,0.67673305]
[1768458829383,9.51557659,144.19,144.14,0.67673305]
[1768458829584,10.01289429,144.19,144.14,0.67673305]
[1768458830191,10.01289429,144.19,144.14,2.58028289]
[1768458830401,7.4326114,144.19,144.15,0.67673305]
[1768458832076,10.01289429,144.19,144.15,0.67673305]
[1768458832482,0.72318758,144.21,144.16,3.24631115]
[1768458832675,0.72318758,144.21,144.15,6.93707464]
[1768458832676,0.72318758,144.23,144.19,0.66602826]
[1768458832990,0.72318758,144.23,144.18,2.58028289]
[1768458833200,3.30347047,144.23,144.18,2.58028289]
[1768458833408,0.72318758,144.23,144.18,2.58028289]
[1768458833705,3.30347047,144.23,144.18,2.58028289]
[1768458834301,0.4734958,144.22,144.18,2.58028289]
[1768458834805,10.23726374,144.23,144.19,0.66602826]
[1768458835289,3.05377869,144.22,144.19,0.66602826]
[1768458836181,0.4734958,144.22,144.19,0.66602826]
[1768458836802,3.05377869,144.22,144.19,0.66602826]
[1768458837511,9.98767762,144.22,144.19,0.66602826]
[1768458838107,9.98767762,144.22,144.18,0.66602826]
[1768458839104,0.47596775,144.2,144.17,13.30602826]
[1768458839486,7.65752546,144.21,144.18,0.66602826]
[1768458840309,0.4734958,144.2,144.17,13.30602826]
[1768458840890,0.4734958,144.2,144.16,3.24631115]
[1768458841493,0.4734958,144.2,144.17,0.66602826]
[1768458841891,3.30097355,144.19,144.16,0.66602826]
[1768458842093,0.47596775,144.18,144.15,0.66602826]
[1768458842327,3.05625064,144.18,144.15,0.66602826]
[1768458843410,9.9922087,144.18,144.14,13.30602826]
[1768458846014,0.71824343,144.17,144.14,13.30602826]
[1768458846698,3.29852632,144.17,144.14,13.30602826]
[1768458847701,0.71824343,144.17,144.14,13.30602826]
[1768458847913,3.29852632,144.17,144.14,13.30602826]
[1768458848107,10.23479924,144.17,144.14,12.64]
[1768458848307,0.47839051,144.16,144.13,0.66602826]
[1768458849212,0.47839051,144.16,144.12,0.66602826]
[1768458849416,0.7158449,144.15,144.12,0.66602826]
[1768458850015,3.29612779,144.15,144.12,0.66602826]
[1768458850212,0.7158449,144.15,144.12,0.66602826]
[1768458851704,10.23339666,144.15,144.12,0.66602826]
[1768458851908,3.06104794,144.14,144.11,14.53431853]
[1768458852502,0.7134941,144.13,144.11,13.86829027]
[1768458853198,3.29377699,144.13,144.11,13.86829027]
[1768458853798,3.06337523,144.12,144.11,13.14991644]
[1768458854014,3.00337524,144.12,144.11,13.14991644]
[1768458854403,9.94203746,144.12,144.1,0.2]
[1768458854603,9.94203746,144.12,144.09,0.2]
[1768458854604,2.58028289,144.11,144.09,0.2]
[1768458854909,9.94203746,144.12,144.09,0.86602826]
[1768458855109,2.58028289,144.11,144.09,0.86602826]
[1768458855311,7.36175457,144.12,144.09,0.86602826]
[1768458855510,2.58028289,144.11,144.09,0.86602826]
[1768458856118,7.36175457,144.12,144.09,0.86602826]
[1768458856320,9.94203746,144.12,144.09,0.86602826]
[1768458857340,10.97945095,144.13,144.1,0.66602826]
[1768458859823,11.30030237,144.13,144.1,0.66602826]
[1768458860205,10.97945095,144.13,144.1,0.66602826]
[1768458860411,4.04111036,144.13,144.1,0.66602826]
[1768458861327,7.03669945,144.14,144.1,0.66602826]
[1768458861509,10.97933451,144.13,144.1,0.66602826]
[1768458862030,7.03684333,144.14,144.1,0.66602826]
[1768458862433,4.04111036,144.13,144.1,0.66602826]
[1768458862632,7.03684333,144.14,144.1,0.66602826]
[1768458862810,4.04111036,144.13,144.1,0.66602826]
[1768458864607,10.97895369,144.14,144.1,0.66602826]
[1768458865929,10.97933356,144.13,144.1,0.66602826]
[1768458866611,11.30018498,144.13,144.1,0.66602826]
[1768458866831,7.25907462,144.13,144.1,0.66602826]
[1768458867033,11.30018498,144.13,144.1,0.66602826]
[1768458868632,4.14232888,144.12,144.09,0.8724055]
[1768458868926,4.04111036,144.11,144.09,0.8724055]
[1768458869328,4.04111036,144.11,144.09,0.2]
[1768458869527,4.14011036,144.12,144.09,0.8724055]
[1768458869715,4.04111036,144.11,144.09,0.8724055]
[1768458870228,10.97933356,144.13,144.1,0.6724055]
[1768458870627,11.07833356,144.13,144.1,0.6724055]
[1768458870928,11.07833356,144.13,144.09,0.2]
[1768458870929,4.04111036,144.12,144.09,0.8724055]
[1768458871234,4.36196178,144.12,144.09,0.8724055]
[1768458872735,11.30082296,144.12,144.09,0.8724055]
[1768458872922,4.04111036,144.11,144.09,0.8724055]
[1768458873612,4.04111036,144.11,144.09,0.2]
[1768458873814,4.36196178,144.12,144.09,0.8724055]
[1768458874039,11.30066086,144.12,144.09,0.8724055]
[1768458875236,4.04111036,144.11,144.09,0.8724055]
[1768458875630,4.04111036,144.11,144.09,0.2]
[1768458876633,4.14232888,144.11,144.09,0.2]
[1768458877339,4.04111036,144.1,144.09,0.2]
[1768458877539,7.04042563,144.11,144.09,0.2]
[1768458877838,11.08153599,144.11,144.09,0.2]
[1768458879041,10.98031747,144.11,144.09,0.2]
[1768458879341,11.07931747,144.11,144.09,0.2]
[1768458880339,0.32085142,144.1,144.09,0.09775907]
[1768458880537,11.20116889,144.11,144.09,0.09775907]
[1768458881241,0.099,144.1,144.08,0.2]
[1768458881437,4.14011036,144.1,144.08,0.2]
[1768458881846,7.06050146,144.15,144.1,0.6724055]
[1768458882020,11.10161182,144.15,144.1,0.6724055]
[1768458882226,4.04111036,144.13,144.1,0.6724055]
[1768458882826,4.04111036,144.12,144.1,0.6724055]
[1768458883034,4.04111036,144.12,144.09,0.6724055]
[1768458883834,4.04111036,144.11,144.08,0.8724055]
[1768458884030,4.04111036,144.11,144.09,0.6724055]
[1768458884246,0.09923852,144.12,144.09,0.6724055]
[1768458884447,11.07913815,144.12,144.09,0.6724055]
[1768458885534,4.04111036,144.1,144.08,0.2]
[1768458886541,4.04111036,144.09,144.07,1e-08]
[1768458886743,16.68111036,144.08,144.03,0.6724055]
[1768458886922,4.04111036,144.06,144.03,0.6724055]
[1768458887733,4.04111036,144.05,144.03,0.6724055]
[1768458888352,12.64,144.08,144.05,0.6724055]
[1768458888945,12.64,144.09,144.05,0.6724055]
[1768458892546,10.98075655,144.1,144.05,0.6724055]
[1768458892547,19.59964619,144.1,144.05,0.6724055]
[1768458892752,19.59964619,144.1,144.06,0.68779123]
[1768458893535,12.66,144.1,144.06,0.68779123]
[1768458894251,19.59967354,144.1,144.06,0.68779123]
[1768458894447,6.93967354,144.1,144.06,0.68779123]
[1768458895353,10.9807839,144.1,144.06,0.68779123]
[1768458904048,4.04111036,144.09,144.04,10.98347831]
[1768458904355,10.98131139,144.09,144.05,0.68779123]
[1768458904572,6.94020103,144.09,144.05,0.68779123]
[1768458904774,4.04111036,144.09,144.05,0.68779123]
[1768458905065,10.9809289,144.1,144.05,0.68779123]
[1768458905369,17.81976867,144.1,144.05,0.68779123]
[1768458905771,13.77865831,144.1,144.05,0.68779123]
[1768458905970,17.81976867,144.1,144.05,0.68779123]
[1768458906152,4.04111036,144.09,144.05,0.68779123]
[1768458906673,4.04111036,144.08,144.05,0.68779123]
[1768458907074,4.04111036,144.09,144.05,0.68779123]
[1768458908069,10.98169892,144.08,144.05,0.68779123]
[1768458909455,6.94058856,144.08,144.05,0.68779123]
[1768458909682,10.98169892,144.08,144.05,0.68779123]
[1768458913877,13.77866569,144.1,144.06,0.68779123]
[1768458914581,17.81977605,144.1,144.06,0.68779123]
[1768458916479,8.08222072,144.07,143.94,1e-08]
[1768458916680,8.08222072,144.07,143.9,0.2]
[1768458916681,3.6194595,144.03,143.92,4.04111036]
[1768458916875,3.6194595,144.03,143.95,4.04111036]
[1768458916876,5.1472763,144.02,143.95,4.04111036]
[1768458917087,9.77896347,144.01,143.96,12.66]
[1768458917260,5.1472763,144.0,143.96,12.66]
[1768458917581,12.35334747,143.99,143.9,7.14917596]
[1768458917752,9.76221894,143.98,143.91,15.25066868]
[1768458917955,45.93028145,144.02,143.92,12.66]
[1768458917956,7.72892687,143.97,143.92,12.66]
[1768458918163,5.13825819,143.96,143.92,12.66]
[1768458918477,5.13825819,143.95,143.92,13.34779123]
[1768458918657,5.13825819,143.94,143.92,13.34779123]
[1768458918858,1e-08,143.93,143.92,13.34779123]
[1768458920182,1e-08,143.93,143.92,0.68779123]
[1768458920373,1e-08,143.93,143.92,13.34779123]
[1768458920776,1e-08,143.93,143.91,12.66]
[1768458920975,6.94691989,143.95,143.91,12.66]
[1768458921476,56.28515741,143.95,143.91,12.66]
[1768458921663,49.33823752,143.95,143.91,12.66]
[1768458921983,49.33823752,143.95,143.91,15.25066868]
[1768458922276,49.33823752,143.95,143.9,9.73984373]
[1768458922484,2.59066868,143.93,143.9,0.2]
[1768458922661,2.69549772,143.94,143.89,12.66]
[1768458922862,0.10482904,143.94,143.9,0.65988624]
[1768458923068,46.87609781,143.94,143.9,0.65988624]
[1768458923283,46.87609781,143.94,143.89,12.66]
[1768458923461,46.87609781,143.94,143.88,9.54052222]
[1768458923666,46.87609781,143.94,143.88,22.20052222]
[1768458923866,46.87609781,143.94,143.89,6.94962368]
[1768458924086,46.87609781,143.94,143.89,9.54029236]
[1768458924271,37.95946027,143.93,143.88,19.61015128]
[1768458924582,37.95946027,143.93,143.89,2.59066868]
[1768458924963,37.95946027,143.93,143.89,9.54026975]
[1768458925365,37.95946027,143.93,143.9,0.65988624]
[1768458925785,37.95946027,143.93,143.88,22.20077929]
[1768458926865,41.22948949,143.93,143.88,12.66]
[1768458927268,38.63882081,143.93,143.88,19.61015421]
[1768458927786,38.63882081,143.93,143.89,0.65988624]
[1768458927982,37.95946027,143.93,143.9,0.65988624]
[1768458928987,37.23446027,143.93,143.92,0.16743629]
[1768458929279,37.23446027,143.93,143.91,0.16743629]
[1768458930199,37.23446027,143.93,143.89,9.7078562]
[1768458930359,37.23446027,143.93,143.9,12.66]
[1768458930759,5.09447092,143.92,143.91,0.16743629]
[1768458931368,5.09447092,143.92,143.9,12.82743629]
[1768458931559,5.09357122,143.91,143.9,12.82743629]
[1768458933080,5.09357122,143.91,143.9,0.16743629]
[1768458933290,5.77293176,143.91,143.85,0.16743629]
[1768458933463,5.09357122,143.9,143.87,2.59066868]
[1768458933663,1e-08,143.89,143.87,2.75810497]
[1768458933865,0.67936054,143.91,143.87,2.75810497]
[1768458934584,37.91382081,143.93,143.89,0.16743629]
[1768458934790,37.23446027,143.93,143.9,15.41810497]
[1768458935177,37.23446027,143.93,143.9,12.82743629]
[1768458935671,37.91382081,143.93,143.89,0.16743629]
[1768458935871,37.91382081,143.93,143.9,12.66]
[1768458936587,37.23446027,143.93,143.9,12.82743629]
[1768458936766,37.06702398,143.93,143.91,2.59066868]
[1768458937894,44.01486289,143.93,143.89,12.66]
[1768458938065,2.59066868,143.92,143.89,12.66]
[1768458938260,37.06702398,143.93,143.89,12.66]
[1768458938261,39.65769266,143.93,143.89,12.66]
[1768458938459,46.60553843,143.93,143.89,12.66]
[1768458938886,3.27002922,143.92,143.89,12.66]
[1768458939194,0.67936054,143.91,143.89,12.66]
[1768458941880,1.37399793,143.92,143.89,12.66]
[1768458942076,37.74638452,143.93,143.89,22.20027303]
[1768458942295,37.06702398,143.93,143.9,2.59066868]
[1768458943284,37.06702398,143.93,143.89,19.60960435]
[1768458943795,37.06702398,143.93,143.92,2.59066868]
[1768458943971,37.06702398,143.93,143.92,15.25066868]
[1768458944171,0.67936054,143.94,143.92,15.25066868]
[1768458945090,0.67936054,143.94,143.92,15.22066868]
[1768458945695,5.08916602,143.93,143.92,15.22066868]
[1768458946081,2e-08,143.93,143.92,15.22066868]
[1768458946867,2e-08,143.93,143.92,2.56066868]
[1768458947068,0.67936054,143.94,143.92,15.22066868]
[1768458947272,0.67936054,143.94,143.92,15.25066868]
[1768458948086,0.67936054,143.94,143.92,2.59066868]
[1768458948391,0.67936054,143.94,143.88,24.32515614]
[1768458948593,0.67936054,143.94,143.92,2.59066868]
[1768458948777,0.67936054,143.94,143.93,12.63]
[1768458948977,0.67936054,143.94,143.93,12.6]
[1768458949797,0.67936054,143.94,143.91,2.59066868]
[1768458949998,0.67936054,143.94,143.92,12.66]
[1768458950194,0.67936054,143.94,143.92,15.25066868]
[1768458950604,0.67936054,143.94,143.93,12.66]
[1768458950789,0.67936054,143.94,143.92,2.59066868]
[1768458950992,0.67936054,143.94,143.93,12.66]
[1768458951196,0.67936054,143.94,143.92,2.59066868]
[1768458951393,0.67936054,143.94,143.93,12.66]
[1768458955687,0.66286665,143.95,143.93,12.66]
[1768458956008,0.66286665,143.95,143.93,15.25066868]
[1768458956882,0.66286665,143.95,143.93,12.66]
[1768458958607,17.36468673,143.98,143.93,12.66]
[1768458958608,7.60841108,143.98,143.93,15.25066868]
[1768458958809,1.35750404,143.98,143.93,22.19831899]
[1768458958992,1.35750404,143.98,143.94,2.59066868]
[1768458959195,5.78911215,143.97,143.93,22.19831899]
[1768458959402,5.78911215,143.97,143.93,12.66]
[1768458959403,5.78911215,143.96,143.93,12.66]
[1768458959605,5.1262455,143.95,143.93,12.66]
[1768458959805,5.1262455,143.94,143.92,9.5388335]
[1768458960010,0.66286665,143.96,143.93,12.66]
[1768458960614,0.66286665,143.97,143.93,15.25066868]
[1768458961412,5.15228612,143.96,143.93,15.25066868]
[1768458961709,0.66286665,143.97,143.93,15.25066868]
[1768458961710,5.15228612,143.95,143.93,15.25066868]
[1768458961911,0.66286665,143.97,143.93,15.25066868]
[1768458962099,5.81569276,143.96,143.93,2.59066868]
[1768458962306,5.15282611,143.95,143.94,12.66]
[1768458963514,5.15282611,143.95,143.93,2.59066868]
[1768458963691,0.66286665,143.96,143.94,12.66]
[1768458963889,5.15307258,143.95,143.94,12.66]
[1768458965290,5.15307258,143.95,143.94,15.25066868]
[1768458965695,0.66286665,143.97,143.94,15.25066868]
[1768458968502,0.66286665,143.97,143.94,2.59066868]
[1768458968819,0.66286665,143.97,143.95,12.66]
[1768458970114,0.66286665,143.97,143.95,15.25066868]
[1768458970418,0.66286665,143.97,143.96,2.59066868]
[1768458970926,0.69463739,143.99,143.97,0.66286665]
[1768458971098,0.69463739,144.02,143.97,3.25353533]
[1768458971295,7.63816766,144.02,143.98,12.66]
[1768458972915,0.66286665,144.01,143.98,12.66]
[1768458975007,1.35750404,144.02,143.98,22.85878932]
[1768458975216,0.66286665,144.02,143.99,2.59066868]
[1768458975426,0.66286665,144.02,143.98,20.26812064]
[1768458975427,0.66286665,144.02,143.98,22.85878932]
[1768458977305,0.66286665,144.02,144.0,2.59066868]
[1768458977506,0.66286665,144.02,143.99,15.91353533]
[1768458977934,0.66286665,144.02,144.0,12.66]
[1768458978237,0.66286665,144.03,144.0,12.66]
[1768458978719,0.66286665,144.03,144.0,13.32286665]
[1768458981131,0.66286665,144.03,144.0,16.70521307]
[1768458981643,0.66286665,144.03,144.0,17.36042495]
[1768458982143,0.68926339,144.04,144.01,4.70042495]
[1768458982322,0.68926339,144.04,144.01,4.67371754]
[1768458985425,0.68926339,144.04,144.01,0.62850447]
[1768458985625,32.92429396,144.08,144.01,4.67371754]
[1768458985830,9.17772347,144.07,144.01,4.67371754]
[1768458986031,5.1325104,144.06,144.01,4.67371754]
[1768458986236,32.92429396,144.08,144.01,4.67371754]
[1768458986237,4.04521307,144.07,144.01,4.67371754]
[1768458986439,140.06950703,144.08,144.02,4.70408655]
[1768458986625,12.07336183,144.07,144.03,17.36408655]
[1768458986833,6.94107031,144.07,144.03,17.36408655]
[1768458987626,0.67272996,144.06,144.03,17.36408655]
[1768458988640,0.67272996,144.05,144.03,12.66]
[1768458989648,7.61499465,144.05,143.99,6.94451197]
[1768458989960,0.67272996,144.04,144.0,17.36408655]
[1768458990254,0.67272996,144.04,144.01,0.65887348]
[1768458990438,7.61446558,144.06,144.02,4.70408655]
[1768458991338,7.61446558,144.06,144.03,12.66]
[1768458992137,7.61446558,144.06,144.03,13.31887348]
[1768458993258,7.61446558,144.06,144.03,12.66]
[1768458993467,7.61480444,144.05,144.03,12.66]
[1768458995544,7.61480444,144.05,144.02,13.31887348]
[1768458998350,0.67272996,144.04,144.02,12.66]
[1768458998851,7.61480444,144.05,144.02,13.31887348]
[1768458999454,7.61480444,144.05,144.02,0.65887348]
[1768458999761,7.61480444,144.05,144.02,13.31887348]
[1768459003450,7.61480444,144.05,144.01,12.66]
[1768459003451,0.67272996,144.04,144.01,12.66]
[1768459003880,0.67272996,144.04,144.01,13.31887348]
[1768459004261,0.67272996,144.04,144.01,17.36408655]
[1768459004981,7.61562297,144.04,144.01,17.36408655]
[1768459009484,7.61562297,144.04,144.02,12.66]
[1768459013668,7.61562297,144.04,144.02,13.32767483]
[1768459014481,24.29711904,144.05,144.02,12.66]
[1768459015165,24.99542046,144.05,144.02,12.66]
[1768459016280,12.09775311,144.04,144.02,12.66]
[1768459016478,6.94288424,144.04,144.02,12.66]
[1768459019173,5.1584785,144.03,144.02,12.66]